bitfinex/quotes_SOLUSD_20241209
["timestamp","ask_amount","ask_price","bid_price","bid_amount"]
[1733758769693,37.24966715,225.29,225.21,37.24966715]
[1733758769893,23.776884,225.28,225.22,37.24966715]
[1733758770119,23.776884,225.31,225.26,37.24966715]
[1733758770404,23.776884,225.29,225.23,37.24966715]
[1733758770604,37.24966715,225.32,225.24,37.24966715]
[1733758771003,37.24966715,225.32,225.26,37.24966715]
[1733758771215,61.02655115,225.32,225.24,37.24966715]
[1733758771532,37.24966715,225.3,225.24,37.24966715]
[1733758771720,61.02655115,225.32,225.24,37.24966715]
[1733758772027,23.776884,225.32,225.25,37.24966715]
[1733758772231,23.776884,225.32,225.19,0.25098]
[1733758772232,61.02655115,225.34,225.27,37.24966715]
[1733758772399,23.776884,225.31,225.25,37.24966715]
[1733758772754,23.776884,225.31,225.24,37.24966715]
[1733758772906,0.83224077,225.38,225.3,0.25098]
[1733758773107,0.8319687,225.47,225.32,5.25093015]
[1733758773359,37.24966715,225.49,225.42,37.24966715]
[1733758773495,0.83154768,225.56,225.43,0.12549]
[1733758773698,10.0,225.63,225.39,0.12549]
[1733758773894,27.74857,225.63,225.39,0.12549]
[1733758774093,6.648,225.64,225.41,0.12549]
[1733758774320,0.83136771,225.63,225.43,0.25098]
[1733758774497,0.5071003,225.65,225.53,37.24966715]
[1733758774704,37.24966715,225.61,225.53,37.24966715]
[1733758775013,37.24966715,225.61,225.45,0.25098]
[1733758775014,37.24966715,225.63,225.55,37.24966715]
[1733758775197,0.5071003,225.65,225.61,37.24966715]
[1733758775398,0.5071003,225.65,225.62,0.12549]
[1733758775636,0.5071003,225.65,225.6,37.24966715]
[1733758775921,0.5071003,225.65,225.58,37.24966715]
[1733758776230,0.5071003,225.65,225.54,0.12549]
[1733758776231,37.24966715,225.59,225.54,0.12549]
[1733758776400,37.24966715,225.59,225.53,0.12549]
[1733758776603,37.24966715,225.59,225.52,8.2714]
[1733758776908,0.5071003,225.65,225.42,20.0]
[1733758776909,37.24966715,225.53,225.45,37.24966715]
[1733758777107,37.24966715,225.53,225.42,24.99995015]
[1733758777108,37.24966715,225.6,225.52,37.24966715]
[1733758777317,37.24966715,225.64,225.56,37.24966715]
[1733758777607,0.5071003,225.65,225.48,5.27886578]
[1733758777608,0.83098138,225.63,225.52,0.12549]
[1733758777830,0.5071003,225.65,225.52,0.12549]
[1733758778031,0.5071003,225.65,225.54,20.0]
[1733758778332,0.5071003,225.65,225.57,0.25098]
[1733758778840,0.5071003,225.65,225.61,0.12549]
[1733758779135,0.5071003,225.65,225.64,0.25098]
[1733758779640,0.5071003,225.65,225.64,37.50064715]
[1733758780020,37.24966715,225.78,225.64,42.77830296]
[1733758780219,37.24966715,225.78,225.71,0.12549]
[1733758780420,37.24966715,225.76,225.71,0.12549]
[1733758780707,37.24966715,225.73,225.67,0.12549]
[1733758781026,37.24966715,225.76,225.69,0.12549]
[1733758781540,37.24966715,225.72,225.67,0.12549]
[1733758781710,37.24966715,225.73,225.66,0.12549]
[1733758781906,37.24966715,225.69,225.64,0.12549]
[1733758782106,37.24966715,225.69,225.62,7.6355]
[1733758782334,37.24966715,225.73,225.66,37.24966715]
[1733758783003,37.24966715,225.73,225.65,37.24966715]
[1733758783230,37.24966715,225.7,225.65,0.12549]
[1733758783429,37.24966715,225.7,225.63,0.25098]
[1733758783640,37.24966715,225.7,225.64,37.24966715]
[1733758784004,37.24966715,225.7,225.63,0.12549]
[1733758784407,37.24966715,225.7,225.62,44.88516715]
[1733758784408,37.24966715,225.64,225.62,7.6355]
[1733758784643,61.85749978,225.63,225.56,12.8754]
[1733758784850,37.24966715,225.6,225.56,12.8754]
[1733758785139,5.0,225.7,225.56,12.8754]
[1733758785431,37.24966715,225.57,225.56,12.8754]
[1733758785623,37.24966715,225.58,225.56,12.8754]
[1733758785827,0.83115161,225.69,225.56,12.8754]
[1733758785828,37.24966715,225.57,225.56,12.8754]
[1733758786035,37.24966715,225.57,225.51,7.7188]
[1733758786257,37.24966715,225.52,225.46,12.4479]
[1733758786553,37.24966715,225.47,225.41,8.1705]
[1733758786703,37.24966715,225.5,225.41,8.1705]
[1733758786704,37.24966715,225.42,225.41,8.1705]
[1733758787914,37.24966715,225.42,225.37,12.6481]
[1733758788142,37.24966715,225.38,225.31,7.7047]
[1733758788434,37.24966715,225.37,225.31,7.7047]
[1733758788643,37.24966715,225.4,225.32,37.24966715]
[1733758788830,37.24966715,225.44,225.36,37.24966715]
[1733758789029,37.24966715,225.44,225.37,0.27994005]
[1733758789242,37.24966715,225.41,225.34,37.24966715]
[1733758789439,37.24966715,225.39,225.34,20.0]
[1733758789613,37.24966715,225.41,225.34,20.0]
[1733758789813,37.24966715,225.44,225.36,37.24966715]
[1733758790030,37.24966715,225.44,225.38,0.12549]
[1733758790251,37.24966715,225.41,225.38,0.12549]
[1733758790712,37.24966715,225.41,225.35,0.25098]
[1733758790910,37.24966715,225.41,225.35,0.12549]
[1733758791121,37.24966715,225.4,225.35,0.12549]
[1733758791321,37.24966715,225.4,225.35,0.25098]
[1733758791862,37.24966715,225.41,225.35,0.25098]
[1733758792210,37.24966715,225.41,225.35,37.78075907]
[1733758792423,37.24966715,225.45,225.39,0.25098]
[1733758792641,37.24966715,225.46,225.39,0.25098]
[1733758793025,37.24966715,225.47,225.4,0.12549]
[1733758793346,37.24966715,225.51,225.44,0.25098]
[1733758793567,37.24966715,225.53,225.46,0.12549]
[1733758793838,0.83139812,225.6,225.46,0.12549]
[1733758793839,37.24966715,225.55,225.48,0.12549]
[1733758794051,37.24966715,225.49,225.42,0.12549]
[1733758794217,37.24966715,225.5,225.44,0.25098]
[1733758794415,37.24966715,225.54,225.47,0.12549]
[1733758794646,37.24966715,225.55,225.47,37.7797537]
[1733758795135,37.24966715,225.56,225.49,0.12549]
[1733758795311,37.24966715,225.54,225.49,0.25098]
[1733758795515,6.6481,225.63,225.49,0.25098]
[1733758795516,37.24966715,225.56,225.49,0.25098]
[1733758796212,6.6481,225.63,225.49,0.25098]
[1733758796213,37.24966715,225.58,225.52,0.12549]
[1733758796410,0.8311678,225.62,225.52,0.12549]
[1733758796411,37.24966715,225.62,225.56,0.25098]
[1733758797221,37.24966715,225.64,225.56,0.25098]
[1733758797430,37.24966715,225.66,225.6,0.25098]
[1733758797614,37.24966715,225.64,225.6,0.25098]
[1733758797921,37.24966715,225.62,225.6,0.12549]
[1733758798644,37.24966715,225.62,225.56,0.12549]
[1733758798813,37.24966715,225.62,225.54,0.25098]
[1733758799020,37.24966715,225.58,225.5,8.159]
[1733758799223,37.24966715,225.54,225.5,8.159]
[1733758799434,37.24966715,225.52,225.5,8.159]
[1733758799840,37.24966715,225.52,225.47,13.0319]
[1733758800042,0.83121125,225.6,225.47,13.0319]
[1733758800043,37.24966715,225.49,225.47,13.0319]
[1733758800424,37.24966715,225.51,225.47,13.0319]
[1733758800623,37.24966715,225.51,225.42,0.27945519]
[1733758800624,37.24966715,225.49,225.4,8.208]
[1733758800926,37.24966715,225.49,225.41,37.52929539]
[1733758801127,37.24966715,225.47,225.41,0.27962824]
[1733758801351,37.24966715,225.45,225.4,8.208]
[1733758801859,37.24966715,225.47,225.4,8.208]
[1733758802236,7.48112394,225.58,225.4,8.208]
[1733758802237,37.24966715,225.43,225.4,8.208]
[1733758803051,23.776884,225.49,225.4,8.208]
[1733758803052,37.24966715,225.47,225.4,8.208]
[1733758803254,23.776884,225.49,225.41,0.12549]
[1733758803255,37.24966715,225.49,225.41,0.12549]
[1733758803559,37.24966715,225.51,225.43,0.25098]
[1733758804060,37.24966715,225.61,225.43,0.25098]
[1733758804061,37.24966715,225.49,225.43,0.25098]
[1733758805147,37.24966715,225.51,225.45,0.25098]
[1733758805469,6.6494,225.59,225.45,0.12549]
[1733758805470,37.24966715,225.49,225.45,0.12549]
[1733758805757,37.24966715,225.49,225.4,8.208]
[1733758805758,37.24966715,225.47,225.4,8.208]
[1733758805965,37.24966715,225.43,225.4,8.208]
[1733758806874,24.60847481,225.49,225.38,12.403]
[1733758806875,37.24966715,225.41,225.38,12.403]
[1733758807183,37.24966715,225.41,225.25,5.0]
[1733758807184,74.4993343,225.39,225.29,0.28012203]
[1733758807464,74.4993343,225.39,225.2,8.1559]
[1733758807465,74.4993343,225.3,225.2,8.1559]
[1733758807640,74.4993343,225.3,225.09,13.2493003]
[1733758807641,37.24966715,225.21,225.09,13.2493003]
[1733758807845,5.0,225.25,225.1,0.28137345]
[1733758808033,37.24966715,225.14,225.1,0.28137345]
[1733758808231,37.24966715,225.12,225.09,0.5071003]
[1733758808431,37.24966715,225.17,225.09,0.5071003]
[1733758808633,37.24966715,225.1,225.09,0.5071003]
[1733758809766,74.4993343,225.1,225.09,0.5071003]
[1733758809994,23.776884,225.09,224.9,0.669729]
[1733758810312,37.24966715,224.97,224.9,0.669729]
[1733758810573,0.83326291,225.05,224.9,0.669729]
[1733758810775,5.0,225.13,224.9,0.669729]
[1733758810776,37.24966715,225.02,224.93,37.24966715]
[1733758810934,6.6625,225.14,224.92,5.28297875]
[1733758810935,37.24966715,225.06,224.97,37.24966715]
[1733758811269,37.24966715,225.1,225.01,37.24966715]
[1733758811435,37.24966715,225.1,225.02,0.40779793]
[1733758811773,24.60972789,225.09,224.97,37.24966715]
[1733758811935,37.24966715,225.03,224.95,37.24966715]
[1733758812131,37.24966715,225.05,224.97,37.24966715]
[1733758812339,37.24966715,225.07,224.92,0.28292032]
[1733758812572,37.24966715,225.13,225.06,0.12549]
[1733758812876,37.24966715,225.19,225.1,37.24966715]
[1733758813037,6.6592,225.26,225.13,0.12549]
[1733758813234,0.83256639,225.26,225.18,37.24966715]
[1733758813434,6.6576,225.31,225.19,0.12549]
[1733758813640,0.83243849,225.33,225.28,37.24966715]
[1733758813835,8.4966,225.55,225.19,0.40697411]
[1733758813836,37.24966715,225.3,225.19,0.40697411]
[1733758814084,37.24966715,225.26,225.18,0.12549]
[1733758814590,37.24966715,225.24,225.18,0.12549]
[1733758814761,37.24966715,225.24,225.15,37.24966715]
[1733758815180,37.24966715,225.24,225.17,37.24966715]
[1733758815676,23.776884,225.21,225.13,37.24966715]
[1733758815879,37.24966715,225.18,225.11,37.24966715]
[1733758816053,23.776884,225.15,225.09,37.24966715]
[1733758816459,23.776884,225.15,225.07,37.24966715]
[1733758816775,23.776884,225.13,225.07,37.24966715]
[1733758816973,23.776884,225.13,225.05,37.24966715]
[1733758817152,23.776884,225.13,225.0,0.28228909]
[1733758817153,37.24966715,225.18,225.11,37.24966715]
[1733758817482,38.08239676,225.2,225.11,37.24966715]
[1733758817687,22.37663303,225.43,225.07,0.28206635]
[1733758817688,37.24966715,225.26,225.17,37.24966715]
[1733758817857,37.24966715,225.24,225.17,37.24966715]
[1733758818054,37.24966715,225.22,225.14,37.24966715]
[1733758818294,0.83263491,225.21,225.14,37.24966715]
[1733758818451,37.24966715,225.2,225.13,0.12549]
[1733758818989,37.24966715,225.22,225.14,37.24966715]
[1733758819550,37.24966715,225.22,225.15,0.12549]
[1733758819551,23.776884,225.21,225.15,0.12549]
[1733758819784,24.6094841,225.21,225.15,0.12549]
[1733758819983,23.776884,225.15,225.08,37.24966715]
[1733758820161,23.776884,225.13,225.06,37.24966715]
[1733758820362,37.24966715,225.1,225.02,37.24966715]
[1733758821060,23.776884,225.11,225.04,37.24966715]
[1733758822479,24.60987273,225.11,225.04,37.24966715]
[1733758822683,23.776884,225.11,225.04,37.24966715]
[1733758822892,23.776884,225.13,225.08,37.24966715]
[1733758823071,0.83287908,225.2,225.12,37.24966715]
[1733758823275,40.91326715,225.39,225.16,37.24966715]
[1733758823276,37.24966715,225.25,225.16,37.24966715]
[1733758823598,0.83257988,225.24,225.16,37.24966715]
[1733758823808,5.0,225.32,225.16,37.24966715]
[1733758823809,5.0,225.45,225.23,0.25098]
[1733758823966,37.24966715,225.4,225.3,37.24966715]
[1733758824163,0.83205958,225.39,225.32,37.24966715]
[1733758824382,38.08169114,225.42,225.34,37.24966715]
[1733758824588,37.24966715,225.4,225.32,37.24966715]
[1733758824793,0.83200408,225.39,225.32,37.24966715]
[1733758824965,37.24966715,225.34,225.26,37.24966715]
[1733758825169,38.08167123,225.39,225.28,37.24966715]
[1733758825170,37.24966715,225.36,225.28,37.24966715]
[1733758825375,0.83215994,225.35,225.28,37.24966715]
[1733758825967,5.0,225.42,225.31,0.12549]
[1733758825968,37.24966715,225.38,225.31,0.12549]
[1733758826162,5.0,225.51,225.23,5.53177123]
[1733758826163,37.24966715,225.36,225.28,37.24966715]
[1733758826370,0.83197878,225.37,225.18,11.1022]
[1733758826371,37.24966715,225.32,225.24,37.24966715]
[1733758826595,37.24966715,225.34,225.26,37.24966715]
[1733758826777,37.24966715,225.36,225.28,37.24966715]
[1733758826973,37.24966715,225.3,225.2,0.40623623]
[1733758827291,0.83211455,225.35,225.17,20.5882]
[1733758827292,37.24966715,225.25,225.17,57.83786715]
[1733758827680,0.83252095,225.24,225.15,37.24966715]
[1733758828008,37.24966715,225.25,225.17,37.24966715]
[1733758828212,10.0,225.33,225.13,37.24966715]
[1733758828213,37.24966715,225.21,225.13,37.24966715]
[1733758828502,37.24966715,225.28,225.08,12.5023]
[1733758828503,23.776884,225.16,225.08,49.75196715]
[1733758828700,23.776884,225.16,225.1,37.24966715]
[1733758828911,37.24966715,225.15,225.08,49.75196715]
[1733758829100,37.24966715,225.15,224.95,48.36296715]
[1733758829101,23.776884,225.12,225.06,37.24966715]
[1733758829302,37.24966715,225.09,225.02,37.24966715]
[1733758829503,24.61003737,225.08,225.02,37.24966715]
[1733758829894,0.83302724,225.08,225.02,37.24966715]
[1733758830205,23.776884,225.07,225.02,37.24966715]
[1733758830585,23.776884,225.05,225.0,37.24966715]
[1733758831126,61.02655115,225.03,224.94,37.24966715]
[1733758831419,5.0,225.1,224.94,37.24966715]
[1733758831420,0.83344548,225.06,225.0,37.24966715]
[1733758831627,37.24966715,225.11,225.04,37.24966715]
[1733758831782,37.24966715,225.07,224.99,37.24966715]
[1733758832181,37.24966715,225.09,225.01,37.24966715]
[1733758832414,0.83316904,225.08,225.01,37.24966715]
[1733758832684,37.24966715,225.09,225.03,37.24966715]
[1733758832882,0.83316904,225.13,225.07,37.24966715]
[1733758833118,0.83295399,225.18,225.11,37.24966715]
[1733758833283,22.37663303,225.43,225.06,37.24966715]
[1733758833284,37.24966715,225.23,225.15,37.24966715]
[1733758833479,37.24966715,225.23,225.09,37.24966715]
[1733758833480,37.24966715,225.17,225.09,37.24966715]
[1733758833714,37.24966715,225.15,225.07,37.24966715]
[1733758833930,0.83296467,225.14,225.07,37.24966715]
[1733758834097,5.0,225.23,225.11,37.24966715]
[1733758834098,37.24966715,225.19,225.11,37.24966715]
[1733758834289,8.4966,225.38,225.13,37.24966715]
[1733758834290,0.83277687,225.18,225.13,37.24966715]
[1733758834518,0.83278598,225.2,225.15,37.24966715]
[1733758834687,37.24966715,225.21,225.13,37.24966715]
[1733758834892,37.24966715,225.17,225.09,37.24966715]
[1733758835094,37.24966715,225.21,225.13,37.24966715]
[1733758835293,37.24966715,225.23,225.15,37.24966715]
[1733758835514,0.83265645,225.22,225.15,37.24966715]
[1733758835914,37.24966715,225.19,225.13,37.24966715]
[1733758836225,37.24966715,225.25,225.17,37.24966715]
[1733758836389,37.24966715,225.22,225.14,37.24966715]
[1733758836608,0.83270719,225.21,225.14,37.24966715]
[1733758837019,0.83269371,225.21,225.16,37.24966715]
[1733758837423,20.0,225.14,224.91,149.11298077]
[1733758837602,37.24966715,225.05,224.91,149.11298077]
[1733758837805,24.61001017,225.13,224.91,149.11298077]
[1733758837806,23.776884,225.06,224.98,37.24966715]
[1733758837995,37.24966715,225.05,224.98,37.24966715]
[1733758838203,37.24966715,225.03,224.94,37.24966715]
[1733758838506,23.776884,225.02,224.96,37.24966715]
[1733758838815,0.83333095,225.01,224.96,37.24966715]
[1733758839019,23.776884,225.0,224.96,37.24966715]
[1733758839207,23.776884,225.01,224.96,37.24966715]
[1733758839418,23.776884,225.04,224.96,37.24966715]
[1733758839605,23.776884,225.06,225.0,37.24966715]
[1733758839803,37.24966715,225.11,225.04,37.24966715]
[1733758839996,38.08272613,225.13,225.04,37.24966715]
[1733758840208,38.08272613,225.13,225.06,37.24966715]
[1733758840438,38.08263216,225.17,225.08,37.24966715]
[1733758840635,38.08263216,225.17,225.1,37.24966715]
[1733758840841,37.24966715,225.19,225.12,37.24966715]
[1733758841066,0.83281452,225.18,225.12,37.24966715]
[1733758841342,37.24966715,225.14,225.06,37.24966715]
[1733758841508,37.24966715,225.12,225.04,37.24966715]
[1733758841707,0.83305815,225.11,225.04,37.24966715]
[1733758841906,23.776884,225.11,225.04,37.24966715]
[1733758842310,24.60986069,225.11,225.04,37.24966715]
[1733758842611,37.24966715,225.1,225.01,37.24966715]
[1733758842909,0.83305574,225.09,225.01,37.24966715]
[1733758843409,23.776884,225.15,224.96,12.3093]
[1733758843637,23.776884,225.13,224.96,12.3093]
[1733758843931,23.776884,225.11,224.96,12.3093]
[1733758844146,0.83317124,225.1,224.96,12.3093]
[1733758844446,37.24966715,225.07,225.0,37.24966715]
[1733758844916,0.83319593,225.06,225.0,37.24966715]
[1733758845118,38.08286308,225.1,225.0,37.24966715]
[1733758845368,23.776884,225.11,225.0,37.24966715]
[1733758845369,37.24966715,225.08,225.0,37.24966715]
[1733758845519,38.08284033,225.1,225.02,37.24966715]
[1733758846856,37.24966715,225.08,225.0,37.24966715]
[1733758847032,38.08291287,225.07,225.0,37.24966715]
[1733758847238,37.24966715,225.09,225.0,37.24966715]
[1733758847546,37.24966715,225.09,224.96,12.3093]
[1733758847547,37.24966715,225.11,225.02,37.24966715]
[1733758847900,37.24966715,225.09,225.02,37.24966715]
[1733758848074,37.24966715,225.03,224.96,12.3093]
[1733758848229,37.24966715,224.99,224.91,186.36264792]
[1733758848561,37.24966715,225.04,224.96,37.24966715]
[1733758848728,37.24966715,225.06,224.98,37.24966715]
[1733758848925,37.24966715,225.04,224.96,37.24966715]
[1733758849128,0.83333349,225.03,224.96,37.24966715]
[1733758849430,37.24966715,225.04,224.96,37.24966715]
[1733758849626,37.24966715,225.06,224.98,37.24966715]
[1733758850044,37.24966715,225.06,224.92,0.53447686]
[1733758850045,37.24966715,225.06,225.0,37.24966715]
[1733758850245,37.24966715,225.1,225.02,37.24966715]
[1733758850446,37.24966715,225.12,225.04,37.24966715]
[1733758850659,0.83298542,225.11,225.04,37.24966715]
[1733758850948,37.24966715,225.12,225.04,37.24966715]
[1733758851160,37.24966715,225.12,225.06,37.24966715]
[1733758851344,38.08259243,225.16,225.08,37.24966715]
[1733758851694,37.24966715,225.16,225.08,37.24966715]
[1733758852252,37.24966715,225.12,225.04,37.24966715]
[1733758852585,37.24966715,225.1,225.02,37.24966715]
[1733758852791,37.24966715,225.08,225.02,37.24966715]
[1733758852945,37.24966715,225.06,224.98,37.24966715]
[1733758853150,37.24966715,225.04,224.96,37.24966715]
[1733758853444,37.08298506,225.04,224.96,37.24966715]
[1733758853649,37.24966715,225.03,224.95,37.24966715]
[1733758853871,37.24966715,225.05,224.97,37.24966715]
[1733758854586,37.67434211,225.04,224.96,37.24966715]
[1733758854753,37.24966715,225.03,224.96,37.24966715]
[1733758854952,37.24966715,225.05,224.96,37.24966715]
[1733758855266,37.24966715,225.05,224.98,37.24966715]
[1733758855459,0.42467496,225.04,224.98,37.24966715]
[1733758855783,37.24966715,225.05,224.98,37.24966715]
[1733758856152,0.42467496,225.04,224.98,37.24966715]
[1733758856356,37.24966715,225.05,224.98,37.24966715]
[1733758856579,37.24966715,225.07,224.98,37.24966715]
[1733758856880,37.24966715,225.07,225.0,37.24966715]
[1733758857076,37.24966715,225.09,225.0,37.24966715]
[1733758857293,37.24966715,225.07,225.0,37.24966715]
[1733758858249,37.24966715,225.11,225.04,37.24966715]
[1733758858454,37.24966715,225.13,225.05,37.24966715]
[1733758858662,0.42467496,225.16,225.07,37.24966715]
[1733758858876,37.24966715,225.15,225.07,37.24966715]
[1733758859048,37.24966715,225.13,225.05,37.24966715]
[1733758859252,0.42467496,225.12,225.05,37.24966715]
[1733758859493,37.24966715,225.13,225.05,37.24966715]
[1733758859878,0.42467496,225.12,225.05,37.24966715]
[1733758860073,37.24966715,225.11,225.04,0.12549]
[1733758860603,0.42467496,225.16,225.07,37.24966715]
[1733758860604,37.24966715,225.15,225.07,37.24966715]
[1733758860760,37.24966715,225.17,225.09,37.24966715]
[1733758861170,37.24966715,225.17,225.03,8.3333]
[1733758861171,37.24966715,225.1,225.03,8.3333]
[1733758861473,37.24966715,225.08,225.0,37.24966715]
[1733758861660,37.24966715,225.12,225.04,37.24966715]
[1733758861981,24.9813,225.21,225.02,37.24966715]
[1733758861982,37.24966715,225.1,225.02,37.24966715]
[1733758862161,0.42467496,225.09,225.02,37.24966715]
[1733758862773,37.24966715,225.08,225.0,37.24966715]
[1733758862973,0.42467496,225.07,225.0,37.24966715]
[1733758863496,37.24966715,225.08,225.0,37.24966715]
[1733758863704,37.24966715,225.1,225.02,37.24966715]
[1733758864002,37.67434211,225.14,225.06,37.24966715]
[1733758864197,37.24966715,225.18,225.1,37.24966715]
[1733758864414,37.24966715,225.2,225.12,37.24966715]
[1733758864571,37.24966715,225.18,225.1,37.24966715]
[1733758864767,11.659,225.26,225.08,0.12549]
[1733758864768,37.24966715,225.16,225.08,37.24966715]
[1733758865000,37.24966715,225.14,225.06,37.24966715]
[1733758865302,5.0,225.23,225.05,13.142]
[1733758865303,37.24966715,225.12,225.05,13.142]
[1733758865609,37.24966715,225.14,225.06,37.24966715]
[1733758865907,37.24966715,225.08,225.0,37.24966715]
[1733758866480,37.24966715,225.08,225.02,37.24966715]
[1733758866703,37.24966715,225.1,225.02,37.24966715]
[1733758867005,37.24966715,225.06,224.97,12.6609]
[1733758867173,37.24966715,225.04,224.96,37.24966715]
[1733758867374,37.24966715,225.02,224.94,45.09196715]
[1733758867591,37.24966715,225.04,224.96,37.24966715]
[1733758867815,37.24966715,225.04,224.97,37.24966715]
[1733758867978,37.24966715,225.06,224.97,37.24966715]
[1733758868179,0.42467496,225.09,225.02,37.24966715]
[1733758868180,37.24966715,225.09,225.02,37.24966715]
[1733758868379,37.24966715,225.09,224.95,37.9162419]
[1733758868380,37.24966715,225.14,225.07,37.24966715]
[1733758868603,37.24966715,225.18,225.1,37.24966715]
[1733758869219,37.67434211,225.17,225.1,37.24966715]
[1733758869590,37.67434211,225.17,225.08,37.24966715]
[1733758869777,37.24966715,225.13,225.04,37.24966715]
[1733758869973,37.24966715,225.11,225.02,37.37515715]
[1733758870215,0.42467496,225.1,225.02,37.24966715]
[1733758870507,37.24966715,225.09,225.02,37.24966715]
[1733758870713,37.24966715,225.07,225.0,37.24966715]
[1733758871012,37.24966715,225.05,224.98,37.24966715]
[1733758871223,37.24966715,225.13,225.04,37.24966715]
[1733758871514,37.24966715,225.19,225.11,37.24966715]
[1733758871716,21.8129,225.29,225.05,0.66633029]
[1733758871717,37.24966715,225.15,225.05,0.66633029]
[1733758872017,0.42467496,225.18,224.94,68.41225015]
[1733758872018,0.42467496,225.14,224.94,18.9561]
[1733758872212,37.24966715,225.08,225.0,37.24966715]
[1733758872714,37.24966715,225.1,225.02,37.24966715]
[1733758872917,37.24966715,225.12,225.04,37.24966715]
[1733758873286,37.24966715,225.14,225.06,37.24966715]
[1733758873520,37.24966715,225.08,224.94,7.8423]
[1733758873678,37.24966715,225.05,224.97,37.24966715]
[1733758873876,37.24966715,225.07,224.99,37.24966715]
[1733758874109,0.42467496,225.06,224.99,37.24966715]
[1733758874337,37.24966715,225.09,225.01,37.24966715]
[1733758874499,0.42467496,225.08,225.01,37.24966715]
[1733758875031,37.24966715,225.07,224.99,37.24966715]
[1733758875197,37.24966715,225.05,224.97,37.24966715]
[1733758875539,0.42467496,225.05,224.99,37.24966715]
[1733758876794,23.776884,225.1,225.03,37.24966715]
[1733758877027,37.24966715,225.05,224.94,0.66660681]
[1733758877230,23.776884,225.1,224.94,37.24966715]
[1733758877231,37.24966715,225.02,224.94,37.24966715]
[1733758877441,0.42467496,225.01,224.94,37.24966715]
[1733758877634,24.20155896,225.01,224.94,37.24966715]
[1733758877837,23.776884,224.99,224.92,37.24966715]
[1733758878012,37.24966715,224.96,224.88,37.24966715]
[1733758878219,0.42467496,224.95,224.88,37.24966715]
[1733758878430,0.42467496,224.95,224.84,0.4]
[1733758878748,43.91866715,224.92,224.9,2.9e-05]
[1733758878901,5.42467496,224.91,224.87,2.93e-05]
[1733758879101,37.24966715,224.88,224.87,2.93e-05]
[1733758879306,42.67434211,224.88,224.74,166.56669597]
[1733758879525,37.24966715,224.8,224.74,166.56669597]
[1733758879731,0.42467496,224.79,224.74,166.56669597]
[1733758879934,37.24966715,224.75,224.74,166.56669597]
[1733758880713,61.02655115,224.75,224.74,166.56669597]
[1733758880913,37.24966715,224.75,224.74,166.56669597]
[1733758881336,37.67434211,224.8,224.74,166.56669597]
[1733758881759,0.42467496,224.8,224.76,37.24966715]
[1733758881960,0.42467496,224.8,224.78,37.24966715]
[1733758882141,37.24966715,224.86,224.78,37.24966715]
[1733758882142,0.42467496,224.85,224.78,37.24966715]
[1733758882531,0.42467496,224.85,224.83,37.24966715]
[1733758882870,0.42467496,224.9,224.84,37.24966715]
[1733758883046,0.42467496,224.98,224.88,37.24966715]
[1733758883240,37.24966715,225.02,224.94,37.24966715]
[1733758883549,0.42467496,225.04,224.96,37.24966715]
[1733758883550,0.42467496,225.01,224.96,37.24966715]
[1733758883954,37.24966715,224.97,224.78,20.0]
[1733758884271,37.24966715,224.94,224.85,37.24966715]
[1733758884430,0.42467496,224.93,224.85,37.24966715]
[1733758885026,0.42467496,224.93,224.89,37.24966715]
[1733758885254,37.24966715,224.96,224.89,37.24966715]
[1733758885562,37.24966715,224.94,224.87,37.24966715]
[1733758885761,0.42467496,224.93,224.87,37.24966715]
[1733758885932,20.0,224.83,224.74,166.56669597]
[1733758886134,37.67434211,224.82,224.74,166.56669597]
[1733758886333,23.776884,224.81,224.74,166.56669597]
[1733758886675,0.42467496,224.8,224.74,166.56669597]
[1733758886831,23.776884,224.77,224.74,166.56669597]
[1733758887030,0.42467496,224.76,224.74,166.56669597]
[1733758887256,24.20155896,224.79,224.74,166.56669597]
[1733758887470,0.42467496,224.82,224.75,37.24966715]
[1733758887637,37.67434211,224.82,224.74,166.56669597]
[1733758888457,37.67434211,224.82,224.75,37.24966715]
[1733758888656,37.24966715,224.8,224.74,166.56669597]
[1733758888850,0.42467496,224.79,224.74,166.56669597]
[1733758889048,24.20155896,224.79,224.74,166.56669597]
[1733758889260,37.24966715,224.75,224.74,166.56669597]
[1733758889465,37.24966715,224.77,224.74,166.56669597]
[1733758889670,24.20155896,224.76,224.74,166.56669597]
[1733758889839,0.42467496,224.76,224.74,166.56669597]
[1733758890669,37.67434211,224.77,224.74,166.56669597]
[1733758890985,37.24966715,224.75,224.74,116.45639597]
[1733758891144,5.98587496,224.77,224.74,116.45639597]
[1733758891145,37.67434211,224.77,224.74,116.45639597]
[1733758891875,37.24966715,224.75,224.74,116.45639597]
[1733758894372,37.67434211,224.77,224.74,116.45639597]
[1733758894581,37.67434211,224.81,224.74,153.70606312]
[1733758894753,0.42467496,224.8,224.74,116.45639597]
[1733758895351,37.24966715,224.77,224.74,116.45639597]